[Event "Betsys MČR v online bleskovém šachu 2021"]
[Site "Chess.com"]
[Date "2021.04.17"]
[Round "6"]
[White "Miky2610"]
[Black "Honzik1950"]
[Result "1-0"]
[WhiteElo "1826"]
[BlackElo "1507"]
[TimeControl "180+1"]
[EndTime "9:57:20 PDT"]
[Termination "Uživatel Miky2610 zvítězil na čas"]

1. c4 {[%clk 0:03:00.9]} 1... a6 {[%clk 0:02:56.9]} 2. Nc3 {[%clk 0:03:00.9]}
2... e5 {[%clk 0:02:54.8]} 3. g3 {[%clk 0:03:00.7]} 3... Nc6 {[%clk 0:02:53.9]}
4. Bg2 {[%clk 0:03:00.5]} 4... Nf6 {[%clk 0:02:52.9]} 5. e3 {[%clk 0:03:00.4]}
5... d6 {[%clk 0:02:51.7]} 6. Nge2 {[%clk 0:03:00.2]} 6... Be6 {[%clk
0:02:51.5]} 7. b3 {[%clk 0:02:59.2]} 7... Be7 {[%clk 0:02:47.8]} 8. Bb2 {[%clk
0:02:59.1]} 8... O-O {[%clk 0:02:47.3]} 9. O-O {[%clk 0:02:58.1]} 9... Qc8
{[%clk 0:02:37.1]} 10. d4 {[%clk 0:02:56.6]} 10... exd4 {[%clk 0:02:34.4]} 11.
exd4 {[%clk 0:02:55.7]} 11... Bh3 {[%clk 0:02:33.3]} 12. d5 {[%clk 0:02:45.4]}
12... Bxg2 {[%clk 0:02:23.2]} 13. Kxg2 {[%clk 0:02:44]} 13... Ne5 {[%clk
0:02:17.2]} 14. Re1 {[%clk 0:02:36.7]} 14... Qg4 {[%clk 0:02:06.2]} 15. Ng1
{[%clk 0:02:33.3]} 15... Qxd1 {[%clk 0:02:04.5]} 16. Raxd1 {[%clk 0:02:32]}
16... Rfe8 {[%clk 0:01:57.4]} 17. f4 {[%clk 0:02:29.8]} 17... Ned7 {[%clk
0:01:52.2]} 18. Nf3 {[%clk 0:02:26.5]} 18... Bf8 {[%clk 0:01:51]} 19. h3 {[%clk
0:02:14.5]} 19... Rxe1 {[%clk 0:01:45.5]} 20. Rxe1 {[%clk 0:02:14]} 20... Re8
{[%clk 0:01:45.6]} 21. Rxe8 {[%clk 0:02:12.6]} 21... Nxe8 {[%clk 0:01:45.8]} 22.
Ne4 {[%clk 0:02:12.4]} 22... g6 {[%clk 0:01:34.3]} 23. g4 {[%clk 0:02:06.1]}
23... Bg7 {[%clk 0:01:34.3]} 24. Bxg7 {[%clk 0:02:01.5]} 24... Kxg7 {[%clk
0:01:34.6]} 25. g5 {[%clk 0:02:01.3]} 25... f6 {[%clk 0:01:18]} 26. h4 {[%clk
0:01:55.1]} 26... f5 {[%clk 0:01:10.2]} 27. Ng3 {[%clk 0:01:52.7]} 27... Nc5
{[%clk 0:01:09.9]} 28. h5 {[%clk 0:01:44.7]} 28... Nd3 {[%clk 0:00:55.4]} 29.
h6+ {[%clk 0:01:32.8]} 29... Kf7 {[%clk 0:00:55.6]} 30. Ne2 {[%clk 0:01:31.4]}
30... Nb4 {[%clk 0:00:50]} 31. a3 {[%clk 0:01:25.9]} 31... Nd3 {[%clk
0:00:39.3]} 32. Kg3 {[%clk 0:01:20.2]} 32... c6 {[%clk 0:00:34.2]} 33. dxc6
{[%clk 0:01:14.7]} 33... bxc6 {[%clk 0:00:33.5]} 34. Nfd4 {[%clk 0:01:13.5]}
34... c5 {[%clk 0:00:29.7]} 35. Nc2 {[%clk 0:01:10.3]} 35... Nc7 {[%clk
0:00:25.4]} 36. Ne3 {[%clk 0:01:09.8]} 36... Ne6 {[%clk 0:00:24.3]} 37. Nd5
{[%clk 0:01:07.2]} 37... a5 {[%clk 0:00:17.2]} 38. Nf6 {[%clk 0:01:03.8]} 38...
Nf8 {[%clk 0:00:13.1]} 39. Nd5 {[%clk 0:01:00.9]} 39... Ke6 {[%clk 0:00:11.1]}
40. Kf3 {[%clk 0:00:55]} 40... Kd7 {[%clk 0:00:07.2]} 41. Nf6+ {[%clk
0:00:52.3]} 41... Kc6 {[%clk 0:00:05.3]} 42. Nc3 {[%clk 0:00:51.1]} 42... Kb6
{[%clk 0:00:02.5]} 43. Ncd5+ {[%clk 0:00:50]} 43... Kc6 {[%clk 0:00:02.2]} 44.
Ne7+ {[%clk 0:00:49.1]} 1-0

[Event "Betsys MČR v online bleskovém šachu 2021"]
[Site "Chess.com"]
[Date "2021.04.17"]
[Round "6"]
[White "Tlaskin"]
[Black "Toman_26"]
[Result "1-0"]
[WhiteElo "1367"]
[BlackElo "1020"]
[TimeControl "180+1"]
[EndTime "9:57:20 PDT"]
[Termination "Uživatel Tlaskin zvítězil matem"]

1. e4 {[%clk 0:03:00.9]} 1... c5 {[%clk 0:02:52.2]} 2. Nf3 {[%clk 0:02:59.8]}
2... d6 {[%clk 0:02:50.5]} 3. d4 {[%clk 0:02:56.6]} 3... cxd4 {[%clk 0:02:50.3]}
4. Nxd4 {[%clk 0:02:55.8]} 4... Nf6 {[%clk 0:02:50.4]} 5. Nc3 {[%clk 0:02:54.5]}
5... g6 {[%clk 0:02:50.5]} 6. Be3 {[%clk 0:02:49.4]} 6... Bg7 {[%clk 0:02:50.6]}
7. Bc4 {[%clk 0:02:46.2]} 7... O-O {[%clk 0:02:50.5]} 8. Qd2 {[%clk 0:02:44.8]}
8... Nc6 {[%clk 0:02:49.9]} 9. O-O-O {[%clk 0:02:39]} 9... Bd7 {[%clk 0:02:46]}
10. Bb3 {[%clk 0:02:36]} 10... Rc8 {[%clk 0:02:32.8]} 11. f3 {[%clk 0:02:35.2]}
11... a6 {[%clk 0:02:27.4]} 12. g4 {[%clk 0:02:28.7]} 12... b5 {[%clk
0:02:27.2]} 13. h4 {[%clk 0:02:17]} 13... Ne5 {[%clk 0:02:24.7]} 14. h5 {[%clk
0:01:40.8]} 14... Nc4 {[%clk 0:02:22.3]} 15. Qf2 {[%clk 0:01:19]} 15... Qa5
{[%clk 0:02:10.1]} 16. hxg6 {[%clk 0:01:13.6]} 16... fxg6 {[%clk 0:01:55.7]} 17.
Bh6 {[%clk 0:01:08.4]} 17... Rf7 {[%clk 0:01:47.7]} 18. Bxg7 {[%clk 0:00:57.3]}
18... Rxg7 {[%clk 0:01:47.4]} 19. g5 {[%clk 0:00:50.7]} 19... Nh5 {[%clk
0:01:46.3]} 20. Rh2 {[%clk 0:00:41.5]} 20... e5 {[%clk 0:01:21]} 21. Nde2 {[%clk
0:00:35.8]} 21... Rc6 {[%clk 0:01:13.5]} 22. Qa7 {[%clk 0:00:31.2]} 22... Qc7
{[%clk 0:01:08.1]} 23. Qa8+ {[%clk 0:00:27]} 23... Qc8 {[%clk 0:01:06.1]} 24.
Qxc8+ {[%clk 0:00:25.1]} 24... Bxc8 {[%clk 0:01:04.1]} 25. Nd5 {[%clk
0:00:22.8]} 25... Kf8 {[%clk 0:00:54.8]} 26. Nf6 {[%clk 0:00:20.5]} 26... Nxf6
{[%clk 0:00:44.2]} 27. gxf6 {[%clk 0:00:20.1]} 27... Rf7 {[%clk 0:00:44.1]} 28.
Nc3 {[%clk 0:00:18.1]} 28... Rxf6 {[%clk 0:00:27]} 29. Rxh7 {[%clk 0:00:17.6]}
29... Kg8 {[%clk 0:00:27]} 30. Rdh1 {[%clk 0:00:16.1]} 30... Be6 {[%clk
0:00:18.9]} 31. Rh8+ {[%clk 0:00:15]} 31... Kf7 {[%clk 0:00:07.6]} 32. R1h7#
{[%clk 0:00:13.9]} 1-0

[Event "Betsys MČR v online bleskovém šachu 2021"]
[Site "Chess.com"]
[Date "2021.04.17"]
[Round "6"]
[White "jarda1955"]
[Black "Bolavey_Kotnik"]
[Result "0-1"]
[WhiteElo "1985"]
[BlackElo "2337"]
[TimeControl "180+1"]
[EndTime "9:57:21 PDT"]
[Termination "Uživatel Bolavey_Kotnik zvítězil na čas"]

1. d4 {[%clk 0:03:00.9]} 1... Nf6 {[%clk 0:02:56.9]} 2. c4 {[%clk 0:03:00.5]}
2... d6 {[%clk 0:02:57]} 3. Nf3 {[%clk 0:02:58]} 3... Nbd7 {[%clk 0:02:57.5]} 4.
Nc3 {[%clk 0:02:56.1]} 4... e5 {[%clk 0:02:57.9]} 5. Bg5 {[%clk 0:02:47.5]} 5...
Be7 {[%clk 0:02:57.1]} 6. dxe5 {[%clk 0:02:43.2]} 6... dxe5 {[%clk 0:02:56.5]}
7. e3 {[%clk 0:02:43.3]} 7... O-O {[%clk 0:02:56.3]} 8. Be2 {[%clk 0:02:43]}
8... c6 {[%clk 0:02:56.7]} 9. O-O {[%clk 0:02:41.6]} 9... Qc7 {[%clk 0:02:57.1]}
10. Qc2 {[%clk 0:02:35.8]} 10... h6 {[%clk 0:02:54.7]} 11. Bh4 {[%clk
0:02:34.5]} 11... a5 {[%clk 0:02:54.7]} 12. Rad1 {[%clk 0:02:29.9]} 12... Re8
{[%clk 0:02:53]} 13. Rfe1 {[%clk 0:02:18.3]} 13... Nc5 {[%clk 0:02:42.3]} 14. h3
{[%clk 0:02:15.7]} 14... b6 {[%clk 0:02:21.6]} 15. Bg3 {[%clk 0:02:10]} 15...
Bf8 {[%clk 0:02:20.9]} 16. Nd2 {[%clk 0:02:01.7]} 16... Nh7 {[%clk 0:01:48.2]}
17. Nb3 {[%clk 0:01:37.5]} 17... Ng5 {[%clk 0:01:14.5]} 18. Nxc5 {[%clk
0:01:34.1]} 18... Bxc5 {[%clk 0:01:15.4]} 19. Bd3 {[%clk 0:01:24.9]} 19... Qe7
{[%clk 0:00:51.3]} 20. Ne4 {[%clk 0:01:21.7]} 20... Bb4 {[%clk 0:00:40.8]} 21.
Re2 {[%clk 0:01:15.8]} 21... f5 {[%clk 0:00:36.6]} 22. Nxg5 {[%clk 0:01:07.9]}
22... Qxg5 {[%clk 0:00:37.5]} 23. a3 {[%clk 0:01:04.5]} 23... Bc5 {[%clk
0:00:35.4]} 24. Red2 {[%clk 0:00:55.1]} 24... f4 {[%clk 0:00:23.8]} 25. Bh7+
{[%clk 0:00:48.7]} 25... Kh8 {[%clk 0:00:21.9]} 26. exf4 {[%clk 0:00:45.4]}
26... exf4 {[%clk 0:00:20.6]} 27. Bg6 {[%clk 0:00:44.6]} 27... Rf8 {[%clk
0:00:19.4]} 28. h4 {[%clk 0:00:21.8]} 28... Qxg3 {[%clk 0:00:15.2]} 29. b4
{[%clk 0:00:04.7]} 29... f3 {[%clk 0:00:15.4]} 0-1

[Event "Betsys MČR v online bleskovém šachu 2021"]
[Site "Chess.com"]
[Date "2021.04.17"]
[Round "6"]
[White "Z_u_z_i"]
[Black "mysacek1414"]
[Result "0-1"]
[WhiteElo "1541"]
[BlackElo "1856"]
[TimeControl "180+1"]
[EndTime "9:57:21 PDT"]
[Termination "Uživatel mysacek1414 zvítězil matem"]

1. e4 {[%clk 0:03:00.9]} 1... c5 {[%clk 0:02:57.3]} 2. Nc3 {[%clk 0:02:58.5]}
2... e6 {[%clk 0:02:57.5]} 3. g3 {[%clk 0:02:56.8]} 3... Nc6 {[%clk 0:02:55.7]}
4. Bg2 {[%clk 0:02:55.3]} 4... g6 {[%clk 0:02:56.3]} 5. d3 {[%clk 0:02:54.2]}
5... Bg7 {[%clk 0:02:56.5]} 6. f4 {[%clk 0:02:53.5]} 6... d6 {[%clk 0:02:56.6]}
7. Nge2 {[%clk 0:02:50.9]} 7... Nge7 {[%clk 0:02:57]} 8. O-O {[%clk 0:02:50.4]}
8... O-O {[%clk 0:02:57.3]} 9. Qe1 {[%clk 0:02:45.9]} 9... a6 {[%clk 0:02:55.5]}
10. g4 {[%clk 0:02:43.6]} 10... f5 {[%clk 0:02:54.8]} 11. gxf5 {[%clk
0:02:37.7]} 11... exf5 {[%clk 0:02:52.2]} 12. Ng3 {[%clk 0:02:35.9]} 12... Nd4
{[%clk 0:02:42.2]} 13. Qd1 {[%clk 0:02:07.3]} 13... Rb8 {[%clk 0:02:36.6]} 14.
Be3 {[%clk 0:02:03.6]} 14... b5 {[%clk 0:02:34.4]} 15. Rb1 {[%clk 0:01:57.8]}
15... Bb7 {[%clk 0:02:26.3]} 16. Nce2 {[%clk 0:01:44.3]} 16... Qc7 {[%clk
0:01:46.6]} 17. c3 {[%clk 0:01:41]} 17... Nxe2+ {[%clk 0:01:45.9]} 18. Qxe2
{[%clk 0:01:40.4]} 18... b4 {[%clk 0:01:46.4]} 19. Rfc1 {[%clk 0:01:08.8]} 19...
Qd7 {[%clk 0:01:38.8]} 20. cxb4 {[%clk 0:00:54.5]} 20... cxb4 {[%clk 0:01:37.4]}
21. Rc2 {[%clk 0:00:50.1]} 21... Rfc8 {[%clk 0:01:23.5]} 22. Rbc1 {[%clk
0:00:49.9]} 22... a5 {[%clk 0:01:17.2]} 23. Rxc8+ {[%clk 0:00:39.8]} 23... Rxc8
{[%clk 0:01:16.8]} 24. Rxc8+ {[%clk 0:00:39.7]} 24... Qxc8 {[%clk 0:01:03.3]}
25. Bh3 {[%clk 0:00:37]} 25... a4 {[%clk 0:00:32.8]} 26. d4 {[%clk 0:00:34.1]}
26... b3 {[%clk 0:00:17.2]} 27. axb3 {[%clk 0:00:33.1]} 27... axb3 {[%clk
0:00:18.1]} 28. e5 {[%clk 0:00:32]} 28... dxe5 {[%clk 0:00:16.8]} 29. fxe5
{[%clk 0:00:27.4]} 29... Qc2 {[%clk 0:00:17.1]} 30. Qxc2 {[%clk 0:00:20.4]}
30... bxc2 {[%clk 0:00:18]} 31. Kf1 {[%clk 0:00:20.3]} 31... Nc6 {[%clk
0:00:17.4]} 32. Ke1 {[%clk 0:00:20.6]} 32... Nxd4 {[%clk 0:00:17.3]} 33. Kd2
{[%clk 0:00:17.5]} 33... Bxe5 {[%clk 0:00:17.1]} 34. Kc1 {[%clk 0:00:14.9]}
34... Be4 {[%clk 0:00:16.2]} 35. Bf1 {[%clk 0:00:10.6]} 35... Nb3# {[%clk
0:00:16.1]} 0-1

[Event "Betsys MČR v online bleskovém šachu 2021"]
[Site "Chess.com"]
[Date "2021.04.17"]
[Round "6"]
[White "CzechMerlin"]
[Black "Maty_2010"]
[Result "1-0"]
[WhiteElo "1666"]
[BlackElo "992"]
[TimeControl "180+1"]
[EndTime "9:57:21 PDT"]
[Termination "Uživatel CzechMerlin zvítězil na čas"]

1. d4 {[%clk 0:03:00.9]} 1... d5 {[%clk 0:02:59.3]} 2. c4 {[%clk 0:03:00.5]}
2... dxc4 {[%clk 0:02:58.6]} 3. Nc3 {[%clk 0:03:00.9]} 3... e5 {[%clk
0:02:53.7]} 4. d5 {[%clk 0:03:00.5]} 4... Nf6 {[%clk 0:02:51.5]} 5. e4 {[%clk
0:03:00.6]} 5... Bc5 {[%clk 0:02:46.7]} 6. Bxc4 {[%clk 0:03:00.1]} 6... Ng4
{[%clk 0:02:33.4]} 7. Nh3 {[%clk 0:02:49.6]} 7... Na6 {[%clk 0:02:25]} 8. Bg5
{[%clk 0:02:13.8]} 8... Qd7 {[%clk 0:02:17.5]} 9. a3 {[%clk 0:02:04.5]} 9... O-O
{[%clk 0:02:11.9]} 10. f3 {[%clk 0:01:30.3]} 10... Nh6 {[%clk 0:02:05.1]} 11.
Bxh6 {[%clk 0:01:29.4]} 11... gxh6 {[%clk 0:02:04.6]} 12. Qd2 {[%clk 0:01:26.9]}
12... Qd6 {[%clk 0:01:49.1]} 13. O-O-O {[%clk 0:01:21.3]} 13... Bd7 {[%clk
0:01:43.3]} 14. f4 {[%clk 0:01:11.9]} 14... Bd4 {[%clk 0:01:31.3]} 15. Ne2
{[%clk 0:01:04.8]} 15... Bc5 {[%clk 0:01:11.7]} 16. Nc3 {[%clk 0:00:45.1]} 16...
Bg4 {[%clk 0:00:48.7]} 17. Rdf1 {[%clk 0:00:41.5]} 17... Bxh3 {[%clk 0:00:45.9]}
18. gxh3 {[%clk 0:00:40.6]} 18... exf4 {[%clk 0:00:42.4]} 19. Rxf4 {[%clk
0:00:36.9]} 19... Qb6 {[%clk 0:00:40.4]} 20. Rg4+ {[%clk 0:00:31.1]} 20... Kh8
{[%clk 0:00:36.1]} 21. Na4 {[%clk 0:00:25.6]} 21... Qf6 {[%clk 0:00:17.1]} 22.
Rf4 {[%clk 0:00:20.4]} 22... Qg5 {[%clk 0:00:15.4]} 23. Nxc5 {[%clk 0:00:17.6]}
23... Nxc5 {[%clk 0:00:14.3]} 24. Rhf1 {[%clk 0:00:17]} 24... Rae8 {[%clk
0:00:08]} 25. Qd4+ {[%clk 0:00:16.7]} 25... Kg8 {[%clk 0:00:05.1]} 26. Qxc5
{[%clk 0:00:16.7]} 26... b6 {[%clk 0:00:04.8]} 27. Qf2 {[%clk 0:00:15]} 27...
Re7 {[%clk 0:00:03.6]} 28. Rg1 {[%clk 0:00:11.8]} 1-0

[Event "Betsys MČR v online bleskovém šachu 2021"]
[Site "Chess.com"]
[Date "2021.04.17"]
[Round "6"]
[White "horvi1"]
[Black "FutureFideMasseur"]
[Result "0-1"]
[WhiteElo "2233"]
[BlackElo "2441"]
[TimeControl "180+1"]
[EndTime "9:57:22 PDT"]
[Termination "Uživatel FutureFideMasseur zvítězil po vzdání soupeře"]

1. Nf3 {[%clk 0:03:00.9]} 1... d5 {[%clk 0:02:59.1]} 2. c4 {[%clk 0:03:00.5]}
2... d4 {[%clk 0:02:58.6]} 3. e3 {[%clk 0:02:59.9]} 3... Nc6 {[%clk 0:02:57.8]}
4. exd4 {[%clk 0:02:58.5]} 4... Nxd4 {[%clk 0:02:57.9]} 5. Nc3 {[%clk
0:02:57.3]} 5... Nh6 {[%clk 0:02:47]} 6. d3 {[%clk 0:02:45.7]} 6... Nhf5 {[%clk
0:02:42.2]} 7. Nxd4 {[%clk 0:02:40.2]} 7... Nxd4 {[%clk 0:02:41.6]} 8. Be3
{[%clk 0:02:36.2]} 8... g6 {[%clk 0:02:38.4]} 9. Be2 {[%clk 0:02:33]} 9... Bg7
{[%clk 0:02:38.2]} 10. O-O {[%clk 0:02:32]} 10... O-O {[%clk 0:02:36.9]} 11. Rc1
{[%clk 0:02:22.9]} 11... c6 {[%clk 0:02:36]} 12. b4 {[%clk 0:02:12.7]} 12... Bf5
{[%clk 0:02:34.3]} 13. Ne4 {[%clk 0:02:02.7]} 13... a5 {[%clk 0:02:24]} 14. a3
{[%clk 0:01:48.1]} 14... axb4 {[%clk 0:02:22]} 15. axb4 {[%clk 0:01:48]} 15...
Ra2 {[%clk 0:02:18.1]} 16. Bf3 {[%clk 0:01:20.1]} 16... Nxf3+ {[%clk 0:02:06]}
17. Qxf3 {[%clk 0:01:19.6]} 17... Qxd3 {[%clk 0:02:05.2]} 18. Nc5 {[%clk
0:01:19.1]} 18... Qa3 {[%clk 0:01:53.6]} 19. Nxb7 {[%clk 0:01:13.1]} 19... Qxb4
{[%clk 0:01:50.6]} 20. Qxc6 {[%clk 0:01:07.5]} 20... Rc8 {[%clk 0:01:35.2]} 21.
Qf3 {[%clk 0:00:53.5]} 21... h5 {[%clk 0:01:21.2]} 22. c5 {[%clk 0:00:48.7]}
22... Be4 {[%clk 0:01:20.9]} 23. Qh3 {[%clk 0:00:38.2]} 23... Qxb7 {[%clk
0:01:18.1]} 24. c6 {[%clk 0:00:30.7]} 24... Rxc6 {[%clk 0:01:09.2]} 25. Rcd1
{[%clk 0:00:29.3]} 25... Rc8 {[%clk 0:00:58.1]} 26. Rd7 {[%clk 0:00:26.4]} 26...
Rc7 {[%clk 0:00:48]} 27. Rd8+ {[%clk 0:00:25.2]} 27... Kh7 {[%clk 0:00:48.2]}
28. f3 {[%clk 0:00:15.3]} 28... Bf5 {[%clk 0:00:46.1]} 29. Qg3 {[%clk
0:00:14.1]} 29... Rcc2 {[%clk 0:00:44.3]} 30. Bf2 {[%clk 0:00:09.2]} 30... Bf6
{[%clk 0:00:40.1]} 31. h4 {[%clk 0:00:08.2]} 31... Qb5 {[%clk 0:00:36]} 32. Rf8
{[%clk 0:00:06.4]} 32... Kg7 {[%clk 0:00:33.7]} 33. Rd8 {[%clk 0:00:06.4]} 33...
Bd3 {[%clk 0:00:23.4]} 0-1

[Event "Betsys MČR v online bleskovém šachu 2021"]
[Site "Chess.com"]
[Date "2021.04.17"]
[Round "6"]
[White "rolkento"]
[Black "Classemence"]
[Result "1-0"]
[WhiteElo "2244"]
[BlackElo "1925"]
[TimeControl "180+1"]
[EndTime "9:57:22 PDT"]
[Termination "Uživatel rolkento zvítězil matem"]

1. e4 {[%clk 0:03:00.9]} 1... c5 {[%clk 0:02:59.2]} 2. c3 {[%clk 0:03:00.9]}
2... Nc6 {[%clk 0:02:58.8]} 3. f4 {[%clk 0:03:00.8]} 3... d5 {[%clk 0:02:52.7]}
4. e5 {[%clk 0:03:00.4]} 4... Bf5 {[%clk 0:02:40.5]} 5. Nf3 {[%clk 0:03:00]}
5... e6 {[%clk 0:02:37.7]} 6. d4 {[%clk 0:02:59.7]} 6... Be7 {[%clk 0:02:19.1]}
7. Be3 {[%clk 0:02:58.3]} 7... cxd4 {[%clk 0:02:16.3]} 8. Nxd4 {[%clk
0:02:58.1]} 8... Nxd4 {[%clk 0:02:10.4]} 9. Bxd4 {[%clk 0:02:56.6]} 9... Bh4+
{[%clk 0:01:58.2]} 10. g3 {[%clk 0:02:40.4]} 10... Be4 {[%clk 0:01:58.1]} 11.
Bb5+ {[%clk 0:02:32.4]} 11... Kf8 {[%clk 0:01:52.3]} 12. O-O {[%clk 0:02:23.7]}
12... Be7 {[%clk 0:01:48]} 13. Nd2 {[%clk 0:02:15]} 13... f5 {[%clk 0:01:06.6]}
14. exf6 {[%clk 0:02:13.3]} 14... Nxf6 {[%clk 0:01:05.7]} 15. Qe2 {[%clk
0:01:35.4]} 15... h5 {[%clk 0:00:57.3]} 16. Rad1 {[%clk 0:01:28.4]} 16... Qc7
{[%clk 0:00:42.4]} 17. Bxf6 {[%clk 0:01:20.2]} 17... gxf6 {[%clk 0:00:33.3]} 18.
Nxe4 {[%clk 0:01:11.6]} 18... dxe4 {[%clk 0:00:33.2]} 19. Bc4 {[%clk 0:01:09.8]}
19... Qb6+ {[%clk 0:00:23.6]} 20. Kg2 {[%clk 0:01:08.1]} 20... e3 {[%clk
0:00:23.4]} 21. f5 {[%clk 0:00:59.3]} 21... e5 {[%clk 0:00:14.1]} 22. Bd5 {[%clk
0:00:59]} 22... h4 {[%clk 0:00:13.5]} 23. Rd3 {[%clk 0:00:52.3]} 23... h3+
{[%clk 0:00:12.4]} 24. Kh1 {[%clk 0:00:50.6]} 24... Rd8 {[%clk 0:00:13]} 25.
Rfd1 {[%clk 0:00:45.8]} 25... Rd6 {[%clk 0:00:12.2]} 26. Be4 {[%clk 0:00:37.7]}
26... Kf7 {[%clk 0:00:09.8]} 27. Rxd6 {[%clk 0:00:28.7]} 27... Bxd6 {[%clk
0:00:09.9]} 28. Qg4 {[%clk 0:00:20.5]} 28... Rg8 {[%clk 0:00:09]} 29. Bd5+
{[%clk 0:00:19.2]} 29... Ke7 {[%clk 0:00:07.9]} 30. Qxg8 {[%clk 0:00:15.4]}
30... Qxb2 {[%clk 0:00:07.7]} 31. Qe6+ {[%clk 0:00:13.3]} 31... Kd8 {[%clk
0:00:08.2]} 32. Qxd6+ {[%clk 0:00:13]} 32... Kc8 {[%clk 0:00:08.4]} 33. Be6#
{[%clk 0:00:11.8]} 1-0

[Event "Betsys MČR v online bleskovém šachu 2021"]
[Site "Chess.com"]
[Date "2021.04.17"]
[Round "6"]
[White "Figo5144"]
[Black "pudltomik"]
[Result "1-0"]
[WhiteElo "578"]
[BlackElo "745"]
[TimeControl "180+1"]
[EndTime "9:57:23 PDT"]
[Termination "Uživatel Figo5144 zvítězil na čas"]

1. e4 {[%clk 0:03:00.9]} 1... d6 {[%clk 0:02:56.4]} 2. d4 {[%clk 0:02:59.5]}
2... Nc6 {[%clk 0:02:51.4]} 3. d5 {[%clk 0:02:57.3]} 3... Nb4 {[%clk 0:02:47]}
4. c3 {[%clk 0:02:56.9]} 4... Na6 {[%clk 0:02:43.6]} 5. Be3 {[%clk 0:02:41.6]}
5... c5 {[%clk 0:02:39.3]} 6. Nd2 {[%clk 0:02:35.3]} 6... e6 {[%clk 0:02:36.3]}
7. Ngf3 {[%clk 0:02:21.4]} 7... e5 {[%clk 0:02:34.3]} 8. Bd3 {[%clk 0:02:13.9]}
8... f6 {[%clk 0:02:32.5]} 9. O-O {[%clk 0:02:13.5]} 9... g6 {[%clk 0:02:28.5]}
10. h3 {[%clk 0:02:13.3]} 10... h5 {[%clk 0:02:21.7]} 11. Qc2 {[%clk 0:02:08.8]}
11... Nc7 {[%clk 0:02:17.2]} 12. a4 {[%clk 0:02:01.9]} 12... Bd7 {[%clk
0:02:16.5]} 13. b3 {[%clk 0:01:59.3]} 13... a6 {[%clk 0:02:12.7]} 14. Kh1 {[%clk
0:01:54.8]} 14... g5 {[%clk 0:02:08.5]} 15. h4 {[%clk 0:01:49.4]} 15... g4
{[%clk 0:02:01.7]} 16. Nh2 {[%clk 0:01:48.3]} 16... Bh6 {[%clk 0:01:47.8]} 17.
Bxh6 {[%clk 0:01:31]} 17... Nxh6 {[%clk 0:01:46.1]} 18. g3 {[%clk 0:01:29.5]}
18... Nf7 {[%clk 0:01:41.5]} 19. f3 {[%clk 0:01:27.8]} 19... a5 {[%clk
0:01:24.9]} 20. f4 {[%clk 0:01:15.3]} 20... exf4 {[%clk 0:01:12.2]} 21. gxf4
{[%clk 0:01:10.9]} 21... O-O {[%clk 0:01:00.2]} 22. f5 {[%clk 0:00:56]} 22...
Ne5 {[%clk 0:00:53.5]} 23. Be2 {[%clk 0:00:46.4]} 23... b6 {[%clk 0:00:48.3]}
24. Rg1 {[%clk 0:00:45.7]} 24... Kh8 {[%clk 0:00:39.4]} 25. Rg2 {[%clk
0:00:33.1]} 25... b5 {[%clk 0:00:27.8]} 26. Rag1 {[%clk 0:00:31.5]} 26... c4
{[%clk 0:00:20.3]} 27. bxc4 {[%clk 0:00:20.5]} 27... bxc4 {[%clk 0:00:17.6]} 28.
Bxg4 {[%clk 0:00:17.5]} 28... Rb8 {[%clk 0:00:12.4]} 29. Bxh5 {[%clk 0:00:16.4]}
29... Be8 {[%clk 0:00:08.3]} 30. Qd1 {[%clk 0:00:11.9]} 1-0

[Event "Betsys MČR v online bleskovém šachu 2021"]
[Site "Chess.com"]
[Date "2021.04.17"]
[Round "6"]
[White "JaraLinhart"]
[Black "NikolaKusova"]
[Result "1-0"]
[WhiteElo "1676"]
[BlackElo "1011"]
[TimeControl "180+1"]
[EndTime "9:57:24 PDT"]
[Termination "Uživatel JaraLinhart zvítězil matem"]

1. e4 {[%clk 0:02:59.9]} 1... e5 {[%clk 0:02:59.1]} 2. Nf3 {[%clk 0:02:57.8]}
2... Nc6 {[%clk 0:02:58.6]} 3. Bb5 {[%clk 0:02:57.3]} 3... Bc5 {[%clk
0:02:57.7]} 4. c3 {[%clk 0:02:57.3]} 4... d6 {[%clk 0:02:52.7]} 5. d4 {[%clk
0:02:54.3]} 5... exd4 {[%clk 0:02:42.6]} 6. cxd4 {[%clk 0:02:53.6]} 6... Bb4+
{[%clk 0:02:39.3]} 7. Nc3 {[%clk 0:02:49.5]} 7... Bxc3+ {[%clk 0:02:37.9]} 8.
bxc3 {[%clk 0:02:49]} 8... Nf6 {[%clk 0:02:35.6]} 9. Qd3 {[%clk 0:02:26.5]} 9...
O-O {[%clk 0:02:31.6]} 10. O-O {[%clk 0:02:26.1]} 10... Re8 {[%clk 0:02:22.8]}
11. Re1 {[%clk 0:02:18.8]} 11... d5 {[%clk 0:02:18.3]} 12. e5 {[%clk 0:02:15.5]}
12... Ng4 {[%clk 0:02:14.4]} 13. h3 {[%clk 0:01:52.7]} 13... Nh6 {[%clk
0:02:06.9]} 14. Bxh6 {[%clk 0:01:48.4]} 14... gxh6 {[%clk 0:02:04.8]} 15. Nh2
{[%clk 0:01:39.8]} 15... Kh8 {[%clk 0:01:54.6]} 16. Ba4 {[%clk 0:01:37.8]} 16...
Rg8 {[%clk 0:01:51]} 17. Re3 {[%clk 0:01:31.2]} 17... Qg5 {[%clk 0:01:46.3]} 18.
Rg3 {[%clk 0:01:28.5]} 18... Qd8 {[%clk 0:01:30.8]} 19. Bc2 {[%clk 0:01:27.1]}
19... Rg7 {[%clk 0:01:14.1]} 20. Rxg7 {[%clk 0:01:26.4]} 20... Kxg7 {[%clk
0:01:13.3]} 21. Qxh7+ {[%clk 0:01:22.7]} 21... Kf8 {[%clk 0:01:11.5]} 22. Ng4
{[%clk 0:01:09.9]} 22... Ke7 {[%clk 0:01:05.5]} 23. Nf6 {[%clk 0:01:06.8]} 23...
Ke6 {[%clk 0:00:57.9]} 24. Re1 {[%clk 0:00:48]} 24... Bd7 {[%clk 0:00:54.8]} 25.
Nxd7 {[%clk 0:00:44.8]} 25... Kxd7 {[%clk 0:00:39.4]} 26. Qxf7+ {[%clk 0:00:44]}
26... Kc8 {[%clk 0:00:36.5]} 27. Bf5+ {[%clk 0:00:43.5]} 27... Kb8 {[%clk
0:00:32.2]} 28. e6 {[%clk 0:00:43.7]} 28... Qe7 {[%clk 0:00:24]} 29. Bg4 {[%clk
0:00:39.3]} 29... Qxf7 {[%clk 0:00:18]} 30. exf7 {[%clk 0:00:39.1]} 30... Nd8
{[%clk 0:00:13.6]} 31. f8=Q {[%clk 0:00:36.8]} 31... a6 {[%clk 0:00:10.3]} 32.
Qxd8+ {[%clk 0:00:35.5]} 32... Ka7 {[%clk 0:00:10.7]} 33. Qxc7 {[%clk
0:00:35.3]} 33... Rb8 {[%clk 0:00:08.2]} 34. Bc8 {[%clk 0:00:34.5]} 34... Ka8
{[%clk 0:00:07.3]} 35. Re7 {[%clk 0:00:34.3]} 35... Ka7 {[%clk 0:00:05.7]} 36.
Bxb7 {[%clk 0:00:33.9]} 36... Rxb7 {[%clk 0:00:04.8]} 37. Qxb7# {[%clk
0:00:33.7]} 1-0